Cogmind - Beta 11.1 @@@ ROGUE MODE // 2022.04.24 @ 06:59:15 Player: ktur Result: Destroyed by B-75 Beast with Heavy Plasma Cannon Performance ------------- Evolutions (4) 2000 Regions Visited (11) 2200 Robots Destroyed (1) 5 Value Destroyed (1) 1 Prototype IDs (241) 4820 Alien Tech Used (0) 0 Bonus (5225) 5225 TOTAL SCORE: 14251 Bonus ------- Pacifist 1125 Entered DSFs 500 Aligned with FarCom 300 Met Data Miner 300 Used Data Conduit 3000 Cogmind --------- Core Integrity 0/850 Matter 300/300 Energy 99/100 System Corruption 0% Temperature Cool (12) Movement Core (50) Location -5/Proximity Caves Parts ------- > --- POWER (3) -------- (None) > --- PROPULSION (2) --- (None) > --- UTILITY (8) ------ Enhanced Optical Array Improved Utility Shielding Ghost Barrier Quantum Router > --- WEAPON (2) ------- (None) > --- INVENTORY (5) ---- Weight Redist. System Improved Terrain Scanner Reaction Control System Cloak of Protection Mace Peak State ------------ > --- POWER ------------ (None) > --- PROPULSION ------- (None) > --- UTILITY ---------- Structural Scanner Enhanced Optical Array Improved Utility Shielding Ghost Barrier Quantum Router > --- WEAPON ----------- Mace > --- INVENTORY -------- Weight Redist. System Improved Terrain Scanner Reaction Control System Cloak of Protection [Rating: 31] Favorites ----------- Power None Propulsion None Utility Structural Scanner Device Structural Scanner Processor Enhanced Optical Array Hackware Quantum Router Protection Improved Utility Shielding Weapon Mace Impact Weapon Mace Build | -11 -10 -10 -10 -9 -8 -7 -7 -6 -6 -6 -5 ------- Run | Scr Mat Min Exi Min Mat Fac DSF Fac Low Dat Pro Slots Evolved 8 | . . . . . 4 2 . 2 . . . Power 2 | . . . . . . 1 . 1 . . . Propulsion . | . . . . . . . . . . . . Utility 6 | . . . . . 4 1 . 1 . . . Weapon . | . . . . . . . . . . . . Parts Attached 7 | . 2 . . . 1 . . 1 . 3 . Power . | . . . . . . . . . . . . Engine . | . . . . . . . . . . . . Core . | . . . . . . . . . . . . Reactor . | . . . . . . . . . . . . Propulsion . | . . . . . . . . . . . . Treads . | . . . . . . . . . . . . Leg . | . . . . . . . . . . . . Wheel . | . . . . . . . . . . . . Hover . | . . . . . . . . . . . . Flight . | . . . . . . . . . . . . Utility 6 | . 1 . . . 1 . . 1 . 3 . Device 2 | . 1 . . . 1 . . . . . . Storage . | . . . . . . . . . . . . Processor 1 | . . . . . . . . 1 . . . Hackware 2 | . . . . . . . . . . 2 . Protection 1 | . . . . . . . . . . 1 . Artifact . | . . . . . . . . . . . . Weapon 1 | . 1 . . . . . . . . . . Energy Gun . | . . . . . . . . . . . . Energy Cannon . | . . . . . . . . . . . . Ballistic Gun . | . . . . . . . . . . . . Ballistic Cannon . | . . . . . . . . . . . . Launcher . | . . . . . . . . . . . . Special Weapon . | . . . . . . . . . . . . Impact Weapon 1 | . 1 . . . . . . . . . . Slashing Weapon . | . . . . . . . . . . . . Piercing Weapon . | . . . . . . . . . . . . Special Melee Weapon . | . . . . . . . . . . . . Unidentified Prototypes 2 | . . . . . . . . . . 2 . Parts Lost 2 | . . . . . . . 1 . . 1 . Power . | . . . . . . . . . . . . Propulsion . | . . . . . . . . . . . . Utility 2 | . . . . . . . 1 . . 1 . Weapon . | . . . . . . . . . . . . Highest Loss Streak 1 | . . . . . . . 1 . . 1 . To Critical Strikes . | . . . . . . . . . . . . Average Slot Usage (%) 24 | . 20 28 28 28 25 23 17 20 20 22 26 Device 9 | . 10 14 14 14 16 15 9 6 6 4 . Processor 2 | . . . . . . . . 6 6 6 6 Hackware 2 | . . . . . . . . . . 4 13 Impact Weapon 8 | . 9 14 14 14 9 7 7 6 6 4 . Naked Turns 22 | . 22 . . . . . . . . . . Heaviest Build 3 | . 3 3 3 3 3 3 3 3 3 3 2 Greatest Support 3 | 3 3 3 3 3 3 3 3 3 3 3 3 Greatest Overweight (x) . | . . . . . . . . . . . . Average Overweight (x) . | . . . . . . . . . . . . Largest Inventory Capacity 5 | 5 5 5 5 5 5 5 5 5 5 5 5 Average Capacity 5 | 5 5 5 5 5 5 5 5 5 5 5 5 Most Carried 5 | . . . 1 1 5 5 5 5 5 5 5 Average Carried 2 | . . . . 1 2 5 5 5 5 4 5 Final Capacity 5 | 5 5 5 5 5 5 5 5 5 5 5 5 Final Carried 5 | . . . 1 1 5 5 5 5 5 5 5 Class Distribution -------------------- 70% | Mutant 16% | Hacker-Mutant 13% | Scout Dominant Class ---------------- Mutant | -10/Materials Mutant | -10/Mines Mutant | -10/Exiles Mutant | -9/Mines Mutant | -8/Materials Mutant | -7/Factory Mutant | -7/DSF Scout | -6/Factory Mutant | -6/Lower Caves Mutant | -6/Data Miner Hacker-Mutant | -5/Proximity Caves Resources | -11 -10 -10 -10 -9 -8 -7 -7 -6 -6 -6 -5 ----------- Run | Scr Mat Min Exi Min Mat Fac DSF Fac Low Dat Pro Matter Collected 260 | 196 . . . 22 . . . . 17 10 15 Remotely . | . . . . . . . . . . . . Salvage Created 27 | . . . . . . . . . . 27 . Parts 2 | . . . . . . . . . . 2 . Haulers Intercepted . | . . . . . . . . . . . . Recyclers Shooed . | . . . . . . . . . . . . Parts Field Recycled . | . . . . . . . . . . . . Retrieved Matter . | . . . . . . . . . . . . Parts Self-Destructed . | . . . . . . . . . . . . Prevented . | . . . . . . . . . . . . Kills | -11 -10 -10 -10 -9 -8 -7 -7 -6 -6 -6 -5 ------- Run | Scr Mat Min Exi Min Mat Fac DSF Fac Low Dat Pro Combat Hostiles Destroyed . | . . . . . . . . . . . . Classes Destroyed . | . . . . . . . . . . . . Best Kill Streak 1 | . . . . . . . . . . 1 . Combat Bots Only . | . . . . . . . . . . . . Max Kills in Single Turn 1 | . . . . . . . . . . 1 . Gunslinging . | . . . . . . . . . . . . Exploded . | . . . . . . . . . . . . Melee . | . . . . . . . . . . . . Uniques/NPCs Destroyed 1 | . . . . . . . . . . 1 . Data Miner (-6/Data Miner) Combat | -11 -10 -10 -10 -9 -8 -7 -7 -6 -6 -6 -5 -------- Run | Scr Mat Min Exi Min Mat Fac DSF Fac Low Dat Pro Damage Taken 1271 | . . . . . 142 . 204 38 . 370 517 Core 1159 | . . . . . 93 . 204 20 . 337 505 Absorbed by Shields . | . . . . . . . . . . . . Redirected to Shielding 37 | . . . . . . . . . . 30 7 Core Remaining (%) 88 | 100 . . . 100 83 . 70 . . . . Volleys Fired . | . . . . . . . . . . . . Largest . | . . . . . . . . . . . . Hottest . | . . . . . . . . . . . . Shots Fired . | . . . . . . . . . . . . Gun . | . . . . . . . . . . . . Cannon . | . . . . . . . . . . . . Launcher . | . . . . . . . . . . . . Special . | . . . . . . . . . . . . Kinetic . | . . . . . . . . . . . . Thermal . | . . . . . . . . . . . . Explosive . | . . . . . . . . . . . . Electromagnetic . | . . . . . . . . . . . . Robot Hit Streak . | . . . . . . . . . . . . Robot Miss Streak . | . . . . . . . . . . . . Penetration Max . | . . . . . . . . . . . . Secondary Targets . | . . . . . . . . . . . . Shots Hit Robots 1 | . . . . . . . . . . 1 . Core Hits 1 | . . . . . . . . . . 1 . Critical Kills . | . . . . . . . . . . . . Critical Parts Destroyed . | . . . . . . . . . . . . Critical Strikes . | . . . . . . . . . . . . Melee Attacks 9 | . 4 . . . . . . 4 . 1 . Impact 9 | . 4 . . . . . . 4 . 1 . Slashing . | . . . . . . . . . . . . Piercing . | . . . . . . . . . . . . Sneak Attacks 1 | . . . . . . . . . . 1 . Combat Hostiles . | . . . . . . . . . . . . Follow-up Attacks . | . . . . . . . . . . . . Damage Inflicted 66 | . . . . . . . . . . 66 . Guns . | . . . . . . . . . . . . Cannons . | . . . . . . . . . . . . Explosions . | . . . . . . . . . . . . Melee 66 | . . . . . . . . . . 66 . Ramming . | . . . . . . . . . . . . Kinetic . | . . . . . . . . . . . . Thermal . | . . . . . . . . . . . . Explosive . | . . . . . . . . . . . . Electromagnetic . | . . . . . . . . . . . . Impact 66 | . . . . . . . . . . 66 . Slashing . | . . . . . . . . . . . . Piercing . | . . . . . . . . . . . . Highest Corruption . | . . . . . . . . . . . . Average Corruption . | . . . . . . . . . . . . Corruption Purged . | . . . . . . . . . . . . Corruption Blocked . | . . . . . . . . . . . . Overload Shots . | . . . . . . . . . . . . Overflow Damage . | . . . . . . . . . . . . Projectiles . | . . . . . . . . . . . . Explosions . | . . . . . . . . . . . . Melee . | . . . . . . . . . . . . Knockbacks . | . . . . . . . . . . . . Impact . | . . . . . . . . . . . . Kinetic . | . . . . . . . . . . . . Secondary . | . . . . . . . . . . . . Self-Inflicted Damage . | . . . . . . . . . . . . Shots . | . . . . . . . . . . . . Rammed . | . . . . . . . . . . . . Targets Rammed . | . . . . . . . . . . . . Kicked . | . . . . . . . . . . . . Crushed . | . . . . . . . . . . . . Highest Temperature . | . . . . . . . . . . . . Average Temperature . | . . . . . . . . . . . . Received Heat Transfer 126 | . . . . . 72 . . 6 . . 48 Siege Activations . | . . . . . . . . . . . . Robots Corrupted . | . . . . . . . . . . . . Combat Hostiles . | . . . . . . . . . . . . Parts Fried . | . . . . . . . . . . . . Impact Corruptions . | . . . . . . . . . . . . Robots Melted . | . . . . . . . . . . . . Combat Hostiles . | . . . . . . . . . . . . Parts Melted . | . . . . . . . . . . . . Heat Transferred . | . . . . . . . . . . . . Parts Sabotaged . | . . . . . . . . . . . . Parts Stolen . | . . . . . . . . . . . . Parts Stripped . | . . . . . . . . . . . . Power Chain Reactions . | . . . . . . . . . . . . Missiles Intercepted . | . . . . . . . . . . . . Alert | -11 -10 -10 -10 -9 -8 -7 -7 -6 -6 -6 -5 ------- Run | Scr Mat Min Exi Min Mat Fac DSF Fac Low Dat Pro Peak Influence 59 | . 54 21 . . 15 6 15 59 . . . Initial 21 | . . 21 . . . 6 4 7 . . . Average 7 | . 16 21 . . 2 6 9 12 . . . Maximum Alert Level . | . . . . . . . . . . . . Low Security (%) 100 | 100 100 100 . 100 100 100 100 100 . . . Level 1 . | . . . . . . . . . . . . Level 2 . | . . . . . . . . . . . . Level 3 . | . . . . . . . . . . . . Level 4 . | . . . . . . . . . . . . Level 5 . | . . . . . . . . . . . . High Security . | . . . . . . . . . . . . Max Security . | . . . . . . . . . . . . Squads Dispatched 2 | . 1 . . . . . 1 . . . . Investigation . | . . . . . . . . . . . . Extermination . | . . . . . . . . . . . . Reinforcement 2 | . 1 . . . . . 1 . . . . Assault . | . . . . . . . . . . . . Garrison . | . . . . . . . . . . . . Intercept . | . . . . . . . . . . . . Searches Triggered . | . . . . . . . . . . . . Construction Impeded . | . . . . . . . . . . . . Haulers Reinforced . | . . . . . . . . . . . . Active Scanning Responses . | . . . . . . . . . . . . Cargo Convoy Interrupts . | . . . . . . . . . . . . Stealth | -11 -10 -10 -10 -9 -8 -7 -7 -6 -6 -6 -5 --------- Run | Scr Mat Min Exi Min Mat Fac DSF Fac Low Dat Pro Distress Signals 1 | . . . . . 1 . . . . . . Communications Jammed . | . . . . . . . . . . . . Distress Signals . | . . . . . . . . . . . . Times Spotted 35 | . 5 . . . 5 . 1 3 . 4 17 Peak Tracking Total 10 | . 3 . . . 5 . 1 5 . 4 10 Tactical Retreats 3 | . . . . . . . . . . . 3 Traps | -11 -10 -10 -10 -9 -8 -7 -7 -6 -6 -6 -5 ------- Run | Scr Mat Min Exi Min Mat Fac DSF Fac Low Dat Pro Traps Triggered . | . . . . . . . . . . . . Indirectly . | . . . . . . . . . . . . Trap Hack Attempts . | . . . . . . . . . . . . Triggered . | . . . . . . . . . . . . Disarmed . | . . . . . . . . . . . . Reprogrammed . | . . . . . . . . . . . . Reused . | . . . . . . . . . . . . Traps Extracted . | . . . . . . . . . . . . Installed . | . . . . . . . . . . . . Triggered 1 | . . . . . . . . . 1 . . Machines | -11 -10 -10 -10 -9 -8 -7 -7 -6 -6 -6 -5 ---------- Run | Scr Mat Min Exi Min Mat Fac DSF Fac Low Dat Pro Machines Disabled . | . . . . . . . . . . . . Max in Single Turn . | . . . . . . . . . . . . Machines Sabotaged . | . . . . . . . . . . . . Garrisons Compromised . | . . . . . . . . . . . . Overloaded Fab Kills . | . . . . . . . . . . . . Hacking | -11 -10 -10 -10 -9 -8 -7 -7 -6 -6 -6 -5 --------- Run | Scr Mat Min Exi Min Mat Fac DSF Fac Low Dat Pro Machines Accessed 15 | . 1 . 1 . 2 1 . 6 . 4 . Terminals 6 | . 1 . . . 2 1 . 2 . . . Fabricators 2 | . . . . . . . . 2 . . . Repair Stations . | . . . . . . . . . . . . Recycling Units 2 | . . . . . . . . 2 . . . Scanalyzers . | . . . . . . . . . . . . Garrison Access . | . . . . . . . . . . . . Total Hacks 48 | . 1 . 1 . 5 2 . 9 . 30 . Successful 36 | . . . 1 . 2 1 . 2 . 30 . Failed 12 | . 1 . . . 3 1 . 7 . . . Catastrophic 3 | . 1 . . . . . . 2 . . . Database Lockouts . | . . . . . . . . . . . . Manual 8 | . 1 . 1 . 5 . . 1 . . . Terminals 10 | . 1 . . . 5 2 . 2 . . . Fabricators 3 | . . . . . . . . 3 . . . Repair Stations . | . . . . . . . . . . . . Recycling Units 4 | . . . . . . . . 4 . . . Scanalyzers . | . . . . . . . . . . . . Garrison Access . | . . . . . . . . . . . . Terminal Hacks 35 | . . . 1 . 2 1 . 1 . 30 . Record 11 | . . . . . . . . . . 11 . Part Schematic 10 | . . . . . . . . . . 10 . Robot Schematic 6 | . . . . . . . . . . 6 . Prototype ID Bank 3 | . . . . . . . . . . 3 . Open DSF 1 | . . . . . . 1 . . . . . Level Access Points 2 | . . . . . 1 . . 1 . . . Unreport Threat 1 | . . . . . 1 . . . . . . EX-Prototype ID Bank 1 | . . . 1 . . . . . . . . Fabricator Hacks 1 | . . . . . . . . 1 . . . Network Status 1 | . . . . . . . . 1 . . . Repair Station Hacks . | . . . . . . . . . . . . Recycling Unit Hacks . | . . . . . . . . . . . . Scanalyzer . | . . . . . . . . . . . . Garrison Access Hacks . | . . . . . . . . . . . . Unauthorized Hacks . | . . . . . . . . . . . . Terminals . | . . . . . . . . . . . . Fabricators . | . . . . . . . . . . . . Repair Stations . | . . . . . . . . . . . . Recycling Units . | . . . . . . . . . . . . Scanalyzers . | . . . . . . . . . . . . Garrison Access . | . . . . . . . . . . . . Data Cores Recovered . | . . . . . . . . . . . . Used . | . . . . . . . . . . . . Hacking Detections 8 | . 1 . . . 2 . . 5 . . . Full Trace Events . | . . . . . . . . . . . . Feedback Events . | . . . . . . . . . . . . Feedback Blocked . | . . . . . . . . . . . . Robot Schematics Acquired 6 | . . . . . . . . . . 6 . Robots Built . | . . . . . . . . . . . . Authchips . | . . . . . . . . . . . . Time . | . . . . . . . . . . . . Total Robot Build Rating . | . . . . . . . . . . . . Part Schematics Acquired 10 | . . . . . . . . . . 10 . Parts Built . | . . . . . . . . . . . . Authchips . | . . . . . . . . . . . . Time . | . . . . . . . . . . . . Total Part Build Rating . | . . . . . . . . . . . . Parts Repaired . | . . . . . . . . . . . . Time . | . . . . . . . . . . . . Parts Recycled . | . . . . . . . . . . . . Recycled Matter . | . . . . . . . . . . . . Retrieved Matter . | . . . . . . . . . . . . Retrieved Components . | . . . . . . . . . . . . Parts Scanalyzed . | . . . . . . . . . . . . Part Schematics Acquired . | . . . . . . . . . . . . Parts Damaged . | . . . . . . . . . . . . Bothacking | -11 -10 -10 -10 -9 -8 -7 -7 -6 -6 -6 -5 ------------ Run | Scr Mat Min Exi Min Mat Fac DSF Fac Low Dat Pro Used RIF Installer . | . . . . . . . . . . . . Robots Hacked . | . . . . . . . . . . . . Non-combat . | . . . . . . . . . . . . Combat . | . . . . . . . . . . . . Robot Hacks Applied . | . . . . . . . . . . . . Relay Couplers Released . | . . . . . . . . . . . . Fabnet Peak Effective % . | . . . . . . . . . . . . Robots Rewired . | . . . . . . . . . . . . Allies Hacked . | . . . . . . . . . . . . Hacks Repelled . | . . . . . . . . . . . . Allies | -11 -10 -10 -10 -9 -8 -7 -7 -6 -6 -6 -5 -------- Run | Scr Mat Min Exi Min Mat Fac DSF Fac Low Dat Pro Total Allies 2 | . . . . 2 . . . . . . . Largest Group 2 | . . . . 2 . . . . . . . Highest-Rated Group 47 | . . . . 47 . . . . . . . Highest-Rated Ally 31 | . . . . 31 . . . . . . . Total Orders . | . . . . . . . . . . . . Ally Attacks 3 | . . . . 3 . . . . . . . Total Damage 42 | . . . . 42 . . . . . . . Kills 1 | . . . . 1 . . . . . . . Allies Corrupted . | . . . . . . . . . . . . Allies Melted . | . . . . . . . . . . . . Intel | -11 -10 -10 -10 -9 -8 -7 -7 -6 -6 -6 -5 ------- Run | Scr Mat Min Exi Min Mat Fac DSF Fac Low Dat Pro Robot Analysis Total 128 | . . . . . . . . . . 128 . Derelict Logs Recovered 1 | . . . . . . . . . . . 1 Drone Launches . | . . . . . . . . . . . . Drone Recoveries . | . . . . . . . . . . . . Exploration | -11 -10 -10 -10 -9 -8 -7 -7 -6 -6 -6 -5 ------------- Run | Scr Mat Min Exi Min Mat Fac DSF Fac Low Dat Pro Turns Passed 866 | 11 97 21 110 122 144 7 29 123 19 56 127 Spaces Moved 1542 | 21 165 42 217 145 277 14 56 221 37 94 253 Core 1542 | 21 165 42 217 145 277 14 56 221 37 94 253 Treads . | . . . . . . . . . . . . Legs . | . . . . . . . . . . . . Wheels . | . . . . . . . . . . . . Hover . | . . . . . . . . . . . . Flight . | . . . . . . . . . . . . Fastest Speed 50 | 50 50 50 50 50 50 50 50 50 50 50 50 Average Speed 50 | 50 50 50 50 50 50 50 50 50 50 50 50 Slowest Speed 50 | 50 50 50 50 50 50 50 50 50 50 50 50 Overloaded Moves . | . . . . . . . . . . . . Propulsion Burnouts . | . . . . . . . . . . . . Robots Hopped . | . . . . . . . . . . . . Cave-ins Triggered . | . . . . . . . . . . . . Exploration Rate (%) 36 | 3 34 13 60 31 28 . 76 8 8 82 58 Regions Visited 11 Branch Regions 6 Pre-discovered Areas 30 | . . . . . . . . . . 30 . Known Exits Taken 2 | . . . . . 1 1 . . . . . Unknown Exits Taken 8 | 1 1 1 1 1 . . . 1 1 1 . Scrap Searched 4 | . . . . 1 . . . . 2 . 1 Spaces Dug 7 | . 3 . . . . . . 4 . . . Terrain Destroyed 7 | . 3 . . . . . . 4 . . . Melee 7 | . 3 . . . . . . 4 . . . Projectile . | . . . . . . . . . . . . AOE . | . . . . . . . . . . . . Terrain Rammed . | . . . . . . . . . . . . Walls Destroyed . | . . . . . . . . . . . . Machines Disabled . | . . . . . . . . . . . . Actions | -11 -10 -10 -10 -9 -8 -7 -7 -6 -6 -6 -5 --------- Run | Scr Mat Min Exi Min Mat Fac DSF Fac Low Dat Pro Total 1605 | 20 170 41 217 193 281 13 56 225 36 100 253 Wait 51 | . . . . 49 . . . . . 2 . Move 1531 | 20 164 41 216 144 276 13 55 220 36 93 253 Hop . | . . . . . . . . . . . . Pick Up 5 | . . . 1 . 4 . . . . . . Fast Attach 6 | . 2 . . . 1 . . 1 . 2 . Attach 1 | . . . . . . . . . . 1 . Detach 1 | . . . . . . . . . . 1 . Swap . | . . . . . . . . . . . . Drop . | . . . . . . . . . . . . Fire . | . . . . . . . . . . . . Melee 9 | . 4 . . . . . . 4 . 1 . Ram . | . . . . . . . . . . . . Kick . | . . . . . . . . . . . . Crush . | . . . . . . . . . . . . Escape Stasis . | . . . . . . . . . . . . Rewire 1 | . . . . . . . 1 . . . . Trap . | . . . . . . . . . . . . Miscellaneous . | . . . . . . . . . . . . Route ------- -11/Scrapyard -10/Materials (discovered 2 exits: [*Mat] / [*Min]) -10/Mines -10/Exiles -9/Mines -8/Materials (discovered 3 exits: *Fac x3) -7/Factory -7/DSF -6/Factory (discovered 5 exits: Fac x4 / [*Low]) -6/Lower Caves -6/Data Miner -5/Proximity Caves History --------- Turn | Location | Event 3 | -11/Scrapyard | Discovered new exit (range 15) 12 | -11/Scrapyard | Entered Materials 90 | -10/Materials | Discovered new exit (range 5) 102 | -10/Materials | Discovered new exit (range 14) 109 | -10/Materials | Entered Mines 128 | -10/Mines | Deemed a non-threat by the Exiles lab entrance 128 | -10/Mines | Discovered new exit (range 6) 130 | -10/Mines | Entered Exiles 143 | -10/Exiles | Met 8R-AWN 152 | -10/Exiles | Met EX-HEX 167 | -10/Exiles | Met EX-BIN 173 | -10/Exiles | Aligned with FarCom system 173 | -10/Exiles | Given EX-Vault access code 185 | -10/Exiles | Opened EX-Vault 188 | -10/Exiles | Found Cloak of Protection 201 | -10/Exiles | Warned to stay clear of 0b10 Research branches 207 | -10/Exiles | Exiles lab attacked by MAIN.C 234 | -10/Exiles | Discovered new exit (range 11) 240 | -10/Exiles | Left Exiles lab with Cloak of Protection 240 | -10/Exiles | Entered Mines 311 | -9/Mines | Build established: Mutant 339 | -9/Mines | Assembled infested the area 357 | -9/Mines | Discovered new exit (range 9) 362 | -9/Mines | Entered Materials 362 | -8/Materials | Evolved 4 slots: Utility x4 478 | -8/Materials | Identified exit to Factory 506 | -8/Materials | Entered Factory 506 | -7/Factory | Evolved 2 slots: Power x1, Utility x1 513 | -7/Factory | Identified exit to DSF 513 | -7/Factory | Entered DSF 535 | -7/DSF | Discovered new exit (range 15) 536 | -7/DSF | Additional patrols routed to DSF 542 | -7/DSF | Entered Factory 542 | -6/Factory | Evolved 2 slots: Power x1, Utility x1 642 | -6/Factory | Identified exit to Factory 642 | -6/Factory | Discovered new exit (range 22) 665 | -6/Factory | Entered Lower Caves 666 | -6/Lower Caves | A Derelict revealed a hidden shortcut to meet someone special 684 | -6/Lower Caves | Entered Data Miner 684 | -6/Data Miner | Discovered new exit (range 6) 691 | -6/Data Miner | Met Data Miner 703 | -6/Data Miner | Learned location of Section 7 (-2) 703 | -6/Data Miner | Acquired the access code to Warlord's prototype stash 713 | -6/Data Miner | Received God Mode back door access code from Data Miner 718 | -6/Data Miner | Destroyed Data Miner 722 | -6/Data Miner | Found Prototype Hackware 722 | -6/Data Miner | Identified Quantum Router 723 | -6/Data Miner | Interfaced with the Data Conduit 724 | -6/Data Miner | Found Prototype Hackware 724 | -6/Data Miner | Identified Ghost Barrier 740 | -6/Data Miner | Entered Proximity Caves 777 | -5/Proximity Caves | Attracted the attention of an 0b10 checkpoint 777 | -5/Proximity Caves | Core integrity fell below 50% 850 | -5/Proximity Caves | Core integrity fell below 20% 866 | -5/Proximity Caves | Spotted B-75 Beast 867 | -5/Proximity Caves | Destroyed by B-75 Beast with Heavy Plasma Cannon Last Messages --------------- Downloaded central machine database. Downloaded 29 destinations. Downloaded encryption format records. Connection remotely terminated. 00724_ Acquired Prototype Hackware. 00724_ Identified Ghost Barrier. 00727_ Structural Scanner destroyed. LOCATION=UNKNOWN GOAL=ESCAPE 00776_ Penetrated by Slug. 00777_ Y-64 Sentinel: "INTERCEPTING UNREGISTERED DERELICT." 00779_ Penetrated by Slug. 00801_ Acquired derelict log, extracted data. Data stored: Upper Caves entrances (x1). 00815_ Slug penetrates Wall. 00822_ Penetrated by Slug. 00863_ Searching scrap... 00863_ Found Com. Matter Pod. 00863_ Found 20 Matter. 00864_ Acquired 15 matter. Map ----- +----------------------------------------------------+ | ?????###?????????????????????????????????????????? | | ????# ?????????????????????????????????????????? | | ???? ?????????????????????????????????????????? | | ???? ??????????????????????????????????????????? | | ???# ??????????????????????????????????????????? | | ???# #??????????????????????????????????????????? | | ???# #??????????????????????????????????????????? | | ???# #??????????????????????????????????????????? | | ???# #??###?????????????????????????????????????? | | ??## #?## ##???????????????????????????????????? | | ?## #?? ???????????????????????????????????? | | ## #???# ???????????????????????????????????? | | # #????# ##?????????????????????????????????? | | ##????# ##????????????????????????????????? | | ###### ######???????????????????????????? | | ## ## #???????????????????????????? | | #### #?# #???????????????????????????? | | #??# #### ### #???????????????????????????? | | #??# #?# #?# #???????????????????????????? | | #### ### #?# !#???????????????????????????? | | ## ###% #???????????????????????????? | | ## #???????????????????????????? | | ####### ##??????????????????????????? | | ## ##??## s###????????????????????????? | | ##### #???# s ####### #?????????? | | ###???# ???# @ #?????????? | | ??????# ## #????????? | | ?????# #?#### ## ### #???????? | | ????# #?????#### ?#????? ##???????? | | ????# ### ?????????# ?????????? #????????? | | #??# #??## #??????????# ####???????????????????? | | #???###?????????? #??????????????????????? | | #???????????????? #??????????????????????? | | ##???????????????? ##??????????????????????? | | ##???????????????? ???????????????????????? | | #????????????????? ???????????????????????? | | ### #????????????????? ???????????????????????? | | #???#???????????????? BB ???????????????????????? | | ????????????????????? BB ???????????????????????? | | ????????????????????? ???????????????????????? | | ????????????????????? #??????????????????????? | | ???????????????????? #??????????????????????? | | ????????????????????#######??????????????????????? | | ?????????????????????????????????????????????????? | | ?????????????????????????????????????????????????? | | ?????????????????????????????????????????????????? | | ?????????????????????????????????????????????????? | | ?????????????????????????????????????????????????? | | ?????????????????????????????????????????????????? | | ?????????????????????????????????????????????????? | +----------------------------------------------------+ Best States ------------- Heat Dissipation 37 Energy Generation 5 Energy Capacity 100 Matter Stores 300 Matter Capacity 300 Sight Range 22 Terrain Scan Density 10 Utility Shielding 66 Evasion (%) 50 Defensive Hacking 45 Item Schematics ----------------- Combat Drone Bay | -6/Data Miner | Free Lgt. Regenerative Plating | -6/Data Miner | Free Enh. Flexi-carbon Leg | -6/Data Miner | Free Imp. Matter Compressor | -6/Data Miner | Free Cld. Plasma Rifle | -6/Data Miner | Free Centrium Wheel | -6/Data Miner | Free Adv. Cryofiber Web | -6/Data Miner | Free Adv. Datajack | -6/Data Miner | Free Imp. Heavy Siege Treads | -6/Data Miner | Free Imp. Launcher Guidance Computer | -6/Data Miner | Free Robot Schematics ------------------ B-48 Gladiator | -6/Data Miner | Free E-15 Imp | -6/Data Miner | Free L-41 Fighter | -6/Data Miner | Free R-10 Processor | -6/Data Miner | Free H-77 Assassin | -6/Data Miner | Free A-27 Freighter | -6/Data Miner | Free Fabricated ------------ Nothing Alien Tech Used ----------------- None Achievements -------------- None Challenges ------------ None Game ------ Seed TrapPoweredProjector Manual? 0 Play Time 00:11:49 Cumulative 356.4 hours Start 2022.04.24 @ 06:48:27 End 2022.04.24 @ 06:59:15 Sessions 1 Manual Loads 0 Difficulty Rogue Special Mode None Game No. 368 Rogue 368 Adventurer 0 Explorer 0 Win Type - Total 19 Types 11/2/3/2/0/0/0/1/0 Lore% 91 Gallery% 88 Achievement% 74 Wizard Run 0 Options --------- ASCII 0 Keyboard 0 Movement Arrows Keybinds 0 Fullscreen 1 Font 18/Smallcaps Map View 76x50 Tactical HUD 1 Map Filters NONE Filters NONE Steam 1 RUN: 31b79ad5-baad-409e-b074-0105159feeb9